{"text_format":"3","workbook":"xlsx","n_sheets":2,"sheets":["Obrazac ponude","Analiza troškova"],"not_rendered":{"charts":1,"images":2,"defined_names":4},"read":"whole","date_system":"1900"}

{"sheet":"Obrazac ponude","index":0,"n_rows":48,"n_cols":7,"rows_kept":48,"merged":[[15,1,25,5],[29,1,31,5],[35,1,37,5],[43,1,45,5]]}
[]
[null,"OBRAZAC PONUDE ZA GRAĐEVINSKE RADOVE",{"$nulls":4}," "]
[]
[]
[null,"PODACI O VLASNIKU",null,null,"PODACI O IZVOĐAČU RADOVA"]
[null,"Ime i prezime","Roman Miler",null,"Tvrtka","Fabrikam, Inc."]
[null,"Adresa","Glavna ulica 12",null,"Ime i prezime","Dragan Tomić"]
[null,"Poštanski broj, grad","10000 Zagreb",null,"Adresa","Južna ulica 32"]
[null,"Telefon",8885550111,null,"Poštanski broj, grad","10000 Zagreb"]
[null,"E-pošta","roman@proseware.com",null,"Telefon",8885550123]
[{"$nulls":4},"E-pošta","dragan@fabrikam.com"]
[null,"Naziv projekta","Stube za posao",null,"Datum dovršetka","2013-07-14"]
[]
[null,"OPSEG RADOVA"]
[]
[null,"Ovdje se opisuje opseg radova. Upišite sve željene specifikacije. U ovom je primjeru opseg izgradnja velikog stubišta. Koristit ćemo samo daske veličine 2x4 i 2x8 i držače greda za izgradnju okvira. Stube će se rezati od materijala veličine 2x4. Najmanji vijci bit će oni od 2 inča. Čavli neće biti manji od 10 d. Nosivost konstrukcije bit će najmanje 250 kg po stubi. Stube će biti vodoravne u odnosu na kuću. Podnožje će se pričvrstiti za kuću. Izvođač radova očistit će nakon dovršetka posla."]
{"$rows_empty":11}
[null,"NIJE OBUHVAĆENO"]
[]
[null,"Neće se instalirati rukohvati. Teren mora pripremiti vlasnik. Vlasnik je dužan za bojanje stuba."]
[]
[]
[]
[null,"PONUDA TVRTKE"]
[]
[null,"Fabrikam, Inc. nudi gore naveden opseg radova koji će biti dovršeni do 14. 7. 2011. za cijenu od 2382,15 kn."]
[]
[]
[]
[null,"Podnio (predstavnik tvrtke)",{"$nulls":3},"Datum"]
[]
[null,"PRIHVAĆANJE VLASNIKA"]
[]
[null,"Ja, Roman Miler, prihvaćam gore naveden opseg radova s rokom dovršetka 14. 7. 2011. za cijenu od 2382,15 kn."]
[]
[]
[]
[null,"Podnio (vlasnik kuće ili ovlašteni predstavnik)",{"$nulls":3},"Datum"]

{"sheet":"Analiza troškova","index":1,"n_rows":47,"n_cols":6,"rows_kept":47,"merged":[[42,3,42,4],[43,3,43,4],[44,3,44,4],[45,3,45,4],[46,3,46,4],[47,3,47,4],[48,3,48,4],[49,3,49,4]]}
[]
[null,"SAŽETAK CIJENA IZ PONUDE",{"$nulls":3}," "]
[]
[]
[null,"POPIS MATERIJALA I CIJENA"]
[]
[null,"Količina","Opis","Cijena","Ukupno"," "]
[null,5,"Daske 2x8x10",{"v":6.75,"d":"6.75 kn"},{"$f":"StavkePonude[Cijena]*StavkePonude[Količina]","v":{"v":33.75,"d":"33.75 kn"}},{"$f":"_xlfn.RANK.EQ(StavkePonude[[#This Row],[Ukupno]],StavkePonude[Ukupno])","v":4}]
[null,20,"Daske 2x4x10",{"v":4.97,"d":"4.97 kn"},{"$f":"StavkePonude[Cijena]*StavkePonude[Količina]","v":{"v":99.39999999999999,"d":"99.40 kn"}},{"$f":"_xlfn.RANK.EQ(StavkePonude[[#This Row],[Ukupno]],StavkePonude[Ukupno])","v":2}]
[null,30,"Držači greda",{"v":2.49,"d":"2.49 kn"},{"$f":"StavkePonude[Cijena]*StavkePonude[Količina]","v":{"v":74.7,"d":"74.70 kn"}},{"$f":"_xlfn.RANK.EQ(StavkePonude[[#This Row],[Ukupno]],StavkePonude[Ukupno])","v":3}]
[null,2,"Kutija vijaka, 2 inča",{"v":6.67,"d":"6.67 kn"},{"$f":"StavkePonude[Cijena]*StavkePonude[Količina]","v":{"v":13.34,"d":"13.34 kn"}},{"$f":"_xlfn.RANK.EQ(StavkePonude[[#This Row],[Ukupno]],StavkePonude[Ukupno])","v":6}]
[null,2,"Kutija čavala, 10 d",{"v":3.25,"d":"3.25 kn"},{"$f":"StavkePonude[Cijena]*StavkePonude[Količina]","v":{"v":6.5,"d":"6.50 kn"}},{"$f":"_xlfn.RANK.EQ(StavkePonude[[#This Row],[Ukupno]],StavkePonude[Ukupno])","v":7}]
[null,2,"Rukavice, kožne",{"v":7.75,"d":"7.75 kn"},{"$f":"StavkePonude[Cijena]*StavkePonude[Količina]","v":{"v":15.5,"d":"15.50 kn"}},{"$f":"_xlfn.RANK.EQ(StavkePonude[[#This Row],[Ukupno]],StavkePonude[Ukupno])","v":5}]
[null,2,"Naknade za rad",{"v":100,"d":"100.00 kn"},{"$f":"StavkePonude[Cijena]*StavkePonude[Količina]","v":{"v":200,"d":"200.00 kn"}},{"$f":"_xlfn.RANK.EQ(StavkePonude[[#This Row],[Ukupno]],StavkePonude[Ukupno])","v":1}]
[{"$nulls":4},{"$f":"StavkePonude[Cijena]*StavkePonude[Količina]","v":0},{"$f":"_xlfn.RANK.EQ(StavkePonude[[#This Row],[Ukupno]],StavkePonude[Ukupno])","v":8}]
[{"$nulls":4},{"$f":"StavkePonude[Cijena]*StavkePonude[Količina]","v":0},{"$f":"_xlfn.RANK.EQ(StavkePonude[[#This Row],[Ukupno]],StavkePonude[Ukupno])","v":8}]
[{"$nulls":4},{"$f":"StavkePonude[Cijena]*StavkePonude[Količina]","v":0},{"$f":"_xlfn.RANK.EQ(StavkePonude[[#This Row],[Ukupno]],StavkePonude[Ukupno])","v":8}]
[{"$nulls":4},{"$f":"StavkePonude[Cijena]*StavkePonude[Količina]","v":0},{"$f":"_xlfn.RANK.EQ(StavkePonude[[#This Row],[Ukupno]],StavkePonude[Ukupno])","v":8}]
[{"$nulls":4},{"$f":"StavkePonude[Cijena]*StavkePonude[Količina]","v":0},{"$f":"_xlfn.RANK.EQ(StavkePonude[[#This Row],[Ukupno]],StavkePonude[Ukupno])","v":8}]
[{"$nulls":4},{"$f":"StavkePonude[Cijena]*StavkePonude[Količina]","v":0},{"$f":"_xlfn.RANK.EQ(StavkePonude[[#This Row],[Ukupno]],StavkePonude[Ukupno])","v":8}]
[{"$nulls":4},{"$f":"StavkePonude[Cijena]*StavkePonude[Količina]","v":0},{"$f":"_xlfn.RANK.EQ(StavkePonude[[#This Row],[Ukupno]],StavkePonude[Ukupno])","v":8}]
[{"$nulls":4},{"$f":"StavkePonude[Cijena]*StavkePonude[Količina]","v":0},{"$f":"_xlfn.RANK.EQ(StavkePonude[[#This Row],[Ukupno]],StavkePonude[Ukupno])","v":8}]
[{"$nulls":4},{"$f":"StavkePonude[Cijena]*StavkePonude[Količina]","v":0},{"$f":"_xlfn.RANK.EQ(StavkePonude[[#This Row],[Ukupno]],StavkePonude[Ukupno])","v":8}]
[{"$nulls":4},{"$f":"StavkePonude[Cijena]*StavkePonude[Količina]","v":0},{"$f":"_xlfn.RANK.EQ(StavkePonude[[#This Row],[Ukupno]],StavkePonude[Ukupno])","v":8}]
[{"$nulls":4},{"$f":"StavkePonude[Cijena]*StavkePonude[Količina]","v":0},{"$f":"_xlfn.RANK.EQ(StavkePonude[[#This Row],[Ukupno]],StavkePonude[Ukupno])","v":8}]
[{"$nulls":4},{"$f":"StavkePonude[Cijena]*StavkePonude[Količina]","v":0},{"$f":"_xlfn.RANK.EQ(StavkePonude[[#This Row],[Ukupno]],StavkePonude[Ukupno])","v":8}]
[{"$nulls":4},{"$f":"StavkePonude[Cijena]*StavkePonude[Količina]","v":0},{"$f":"_xlfn.RANK.EQ(StavkePonude[[#This Row],[Ukupno]],StavkePonude[Ukupno])","v":8}]
[{"$nulls":4},{"$f":"StavkePonude[Cijena]*StavkePonude[Količina]","v":0},{"$f":"_xlfn.RANK.EQ(StavkePonude[[#This Row],[Ukupno]],StavkePonude[Ukupno])","v":8}]
[{"$nulls":4},{"$f":"StavkePonude[Cijena]*StavkePonude[Količina]","v":0},{"$f":"_xlfn.RANK.EQ(StavkePonude[[#This Row],[Ukupno]],StavkePonude[Ukupno])","v":8}]
[{"$nulls":4},{"$f":"StavkePonude[Cijena]*StavkePonude[Količina]","v":0},{"$f":"_xlfn.RANK.EQ(StavkePonude[[#This Row],[Ukupno]],StavkePonude[Ukupno])","v":8}]
[1,{"$nulls":3},{"$f":"StavkePonude[Cijena]*StavkePonude[Količina]","v":0},{"$f":"_xlfn.RANK.EQ(StavkePonude[[#This Row],[Ukupno]],StavkePonude[Ukupno])","v":8}]
[2,null,null,"Podzbroj",{"$f":"SUBTOTAL(109,StavkePonude[Ukupno])","v":{"v":443.18999999999994,"d":"443.19 kn"}},{"$f":"SUBTOTAL(109,StavkePonude[[ ]])","v":164}]
[3,null,null,"Stopa poreza",{"v":0.075,"d":"7.50%"}]
[4,null,null,"Porez",{"$f":"PoreznaStopa*StavkePonude[[#Totals],[Ukupno]]","v":{"v":33.23924999999999,"d":"33.24 kn"}}]
[5,null,null,"Sveukupno",{"$f":"Porez+StavkePonude[[#Totals],[Ukupno]]","v":{"v":476.4292499999999,"d":"476.43 kn"}}]
[]
[]
[]
[null,"ANALIZA MATERIJALA I CIJENA"]
[]
[]
[null,null,"UKUPNO","NAPOMENE"]
[null,{"$f":"INDEX(StavkePonude[],MATCH(A31,StavkePonude[[ ]],0),2)","v":"Naknade za rad"},{"$f":"INDEX(StavkePonude[],MATCH(A31,StavkePonude[[ ]],0),4)","v":{"v":200,"d":"$200.00"}}]
[null,{"$f":"INDEX(StavkePonude[],MATCH(A32,StavkePonude[[ ]],0),2)","v":"Daske 2x4x10"},{"$f":"INDEX(StavkePonude[],MATCH(A32,StavkePonude[[ ]],0),4)","v":{"v":99.39999999999999,"d":"$99.40"}}]
[null,{"$f":"INDEX(StavkePonude[],MATCH(A33,StavkePonude[[ ]],0),2)","v":"Držači greda"},{"$f":"INDEX(StavkePonude[],MATCH(A33,StavkePonude[[ ]],0),4)","v":{"v":74.7,"d":"$74.70"}}]
[null,{"$f":"INDEX(StavkePonude[],MATCH(A34,StavkePonude[[ ]],0),2)","v":"Daske 2x8x10"},{"$f":"INDEX(StavkePonude[],MATCH(A34,StavkePonude[[ ]],0),4)","v":{"v":33.75,"d":"$33.75"}}]
[null,{"$f":"INDEX(StavkePonude[],MATCH(A35,StavkePonude[[ ]],0),2)","v":"Rukavice, kožne"},{"$f":"INDEX(StavkePonude[],MATCH(A35,StavkePonude[[ ]],0),4)","v":{"v":15.5,"d":"$15.50"}}]